bitfinex-derivatives/quotes_SOLF0:USTF0_20250409
["timestamp","ask_amount","ask_price","bid_price","bid_amount"]
[1744229502238,0.05914536,119.36,119.35,8.3825]
[1744229503039,0.05914536,119.36,119.35,70.3825]
[1744229504231,0.05914536,119.36,119.35,62.0]
[1744229508339,0.05914536,119.36,119.34,0.05960645]
[1744229509340,8.44114536,119.36,119.34,0.05960645]
[1744229509640,0.05914536,119.36,119.34,0.05960645]
[1744229511243,0.05914536,119.36,119.35,62.0]
[1744229513145,38.04,119.4,119.35,62.0]
[1744229513843,47.3866,119.44,119.35,62.0]
[1744229514040,47.3866,119.44,119.36,16.45112772]
[1744229514243,0.06085507,119.41,119.38,0.0597957]
[1744229516351,8.43975507,119.41,119.38,0.0597957]
[1744229516748,0.06085507,119.41,119.38,0.0597957]
[1744229517248,0.06085507,119.41,119.39,62.0]
[1744229518041,0.06085507,119.41,119.4,8.3792]
[1744229520252,8.3752,119.46,119.44,8.3761]
[1744229520750,38.04,119.47,119.44,8.3761]
[1744229520951,5.9324,119.48,119.45,8.3756]
[1744229521141,5.9324,119.48,119.4,16.45112772]
[1744229521541,0.05426424,119.45,119.44,8.3761]
[1744229522253,0.05426424,119.45,119.43,8.43083547]
[1744229522453,0.05426424,119.45,119.43,0.05413547]
[1744229522648,54.52539196,119.45,119.36,16.45112772]
[1744229522848,54.52539196,119.45,119.35,9.0969]
[1744229522849,16.45112772,119.43,119.35,9.0969]
[1744229523348,8.3789,119.41,119.35,9.0969]
[1744229523861,0.05716982,119.39,119.35,9.0969]
[1744229524055,0.05716982,119.39,119.37,0.05884577]
[1744229525755,0.05716982,119.39,119.37,62.05884577]
[1744229526954,0.05716982,119.39,119.37,0.05884577]
[1744229527659,8.43736982,119.39,119.37,0.05884577]
[1744229529659,0.05716982,119.39,119.37,0.05884577]
[1744229529847,0.05716982,119.39,119.37,62.05884577]
[1744229531562,0.05716982,119.39,119.37,0.05884577]
[1744229532659,8.3806,119.38,119.37,0.05884577]
[1744229533054,3.22066982,119.39,119.3,54.39112772]
[1744229533255,3.22066982,119.39,119.31,62.0]
[1744229533552,16.45112772,119.38,119.31,62.0]
[1744229534169,8.383,119.35,119.33,0.05894523]
[1744229535370,8.3834,119.34,119.33,0.05894523]
[1744229535867,54.46829498,119.36,119.28,16.45112772]
[1744229536062,54.41112772,119.36,119.28,16.45112772]
[1744229536367,16.45112772,119.34,119.27,37.96]
[1744229536567,3.0706,119.33,119.26,16.45112772]
[1744229536773,41.0306,119.33,119.25,9.1808]
[1744229537160,0.0529098,119.3,119.28,0.06081861]
[1744229537361,8.4394098,119.3,119.28,0.06081861]
[1744229537868,0.0529098,119.3,119.28,0.06081861]
[1744229538874,0.0529098,119.3,119.28,62.06081861]
[1744229539284,0.0529098,119.3,119.28,100.02081861]
[1744229539473,0.0529098,119.3,119.28,116.47194633]
[1744229540485,6.1271,119.36,119.28,116.47194633]
[1744229540783,6.1271,119.36,119.31,16.45112772]
[1744229540975,14.5093,119.36,119.29,16.45112772]
[1744229541480,14.5093,119.36,119.31,16.45112772]
[1744229541786,0.05770249,119.34,119.31,0.05733205]
[1744229544184,0.05770249,119.34,119.32,16.45112772]
[1744229549290,0.05770249,119.34,119.31,0.05733205]
[1744229550877,3.28390249,119.34,119.31,0.05733205]
[1744229551086,8.3836,119.33,119.31,0.05733205]
[1744229553491,3.28390249,119.34,119.31,0.05733205]
[1744229553682,19.73503021,119.34,119.31,0.05733205]
[1744229554090,8.3837,119.33,119.31,0.05733205]
[1744229554990,28.11803021,119.34,119.31,0.05733205]
[1744229555182,3.28390249,119.34,119.31,0.05733205]
[1744229557596,0.05770249,119.34,119.31,0.05733205]
[1744229560893,19.40502772,119.38,119.31,0.05733205]
[1744229560894,396.88,119.43,119.33,16.45112772]
[1744229561089,9.0852,119.42,119.35,16.45112772]
[1744229561291,9.0852,119.42,119.35,54.33112772]
[1744229562100,0.05706409,119.4,119.37,0.05624145]
[1744229563499,0.05706409,119.4,119.39,8.379]
[1744229564391,0.05706409,119.4,119.38,62.0]
[1744229564596,0.05706409,119.4,119.37,0.05624145]
[1744229565801,8.3793,119.39,119.37,0.05624145]
[1744229566703,8.43576409,119.4,119.37,0.05624145]
[1744229566896,0.05706409,119.4,119.37,0.05624145]
[1744229567301,8.43556409,119.4,119.37,0.05624145]
[1744229567888,8.3791,119.39,119.37,0.05624145]
[1744229568502,8.43576409,119.4,119.37,0.05624145]
[1744229569205,8.3791,119.39,119.37,0.05624145]
[1744229569500,0.05706409,119.4,119.37,0.05624145]
[1744229570500,8.3794,119.39,119.37,0.05624145]
[1744229571390,0.05706409,119.4,119.37,0.05624145]
[1744229572007,8.3796,119.39,119.37,0.05624145]
[1744229574200,8.43586409,119.4,119.37,8.43664145]
[1744229574401,0.05706409,119.4,119.37,0.05624145]
[1744229575401,0.05706409,119.4,119.39,8.379]
[1744229585211,37.86,119.46,119.38,16.45112772]
[1744229585516,11.564,119.47,119.41,16.45112772]
[1744229585705,3.1902,119.47,119.41,54.31112772]
[1744229586302,3.1902,119.47,119.44,8.3751]
[1744229586507,0.06362814,119.45,119.43,0.05781572]
[1744229586706,22.53752772,119.46,119.38,37.86]
[1744229587016,0.06196267,119.45,119.43,0.06015258]
[1744229587209,37.92196267,119.45,119.38,37.86]
[1744229587415,16.45112772,119.44,119.35,666.40002772]
[1744229588320,16.45112772,119.42,119.35,666.40002772]
[1744229588502,0.05929228,119.41,119.38,0.05862876]
[1744229589005,8.3785,119.4,119.38,0.05862876]
[1744229589209,0.05929228,119.41,119.38,0.05862876]
[1744229589412,8.43729228,119.41,119.38,0.05862876]
[1744229589611,0.05929228,119.41,119.38,0.05862876]
[1744229591915,8.43699228,119.41,119.38,0.05862876]
[1744229592117,0.05929228,119.41,119.38,0.05862876]
[1744229594318,8.43709228,119.41,119.38,0.05862876]
[1744229594510,0.05929228,119.41,119.38,0.05862876]
[1744229595018,8.43729228,119.41,119.38,0.05862876]
[1744229595215,0.05929228,119.41,119.38,0.05862876]
[1744229595519,8.43729228,119.41,119.38,0.05862876]
[1744229595908,0.05929228,119.41,119.38,0.05862876]
[1744229596108,8.3787,119.4,119.38,0.05862876]
[1744229596911,8.379,119.39,119.38,0.05862876]
[1744229597317,0.05929228,119.41,119.38,0.05862876]
[1744229597517,8.379,119.39,119.38,0.05862876]
[1744229597720,0.05929228,119.41,119.38,0.05862876]
[1744229598319,8.379,119.39,119.38,0.05862876]
[1744229599113,8.3809,119.37,119.34,62.0]
[1744229600023,8.3813,119.36,119.32,54.21112772]
[1744229600415,0.06014959,119.35,119.33,0.0562789]
[1744229600616,8.381,119.37,119.33,0.0562789]
[1744229600822,0.05759858,119.35,119.33,0.0562789]
[1744229601023,37.76,119.37,119.33,0.0562789]
[1744229601225,8.44251255,119.35,119.33,0.0611705]
[1744229603630,8.3826,119.34,119.33,0.0611705]
[1744229603824,0.06021255,119.35,119.33,0.0611705]
[1744229605528,0.06021255,119.35,119.34,16.45112772]
[1744229605921,46.1589,119.4,119.34,16.45112772]
[1744229606421,8.3791,119.39,119.34,16.45112772]
[1744229606624,37.78,119.4,119.34,16.45112772]
[1744229606927,8.3794,119.39,119.34,16.45112772]
[1744229607126,0.06184717,119.38,119.36,0.0635376]
[1744229608228,0.06184717,119.38,119.36,62.0635376]
[1744229608833,8.44174717,119.38,119.36,62.0635376]
[1744229609220,0.06184717,119.38,119.36,62.0635376]
[1744229612332,8.44164717,119.38,119.36,62.0635376]
[1744229612731,0.06184717,119.38,119.36,62.0635376]
[1744229613826,0.06184717,119.38,119.36,78.51466532]
[1744229616337,0.06184717,119.38,119.36,0.0635376]
[1744229619733,8.44164717,119.38,119.36,0.0635376]
[1744229620032,0.06184717,119.38,119.36,0.0635376]
[1744229621631,8.44184717,119.38,119.36,0.0635376]
[1744229622132,0.06184717,119.38,119.36,0.0635376]
[1744229623038,8.44184717,119.38,119.36,0.0635376]
[1744229625829,8.3804,119.37,119.36,0.0635376]
[1744229626938,0.06184717,119.38,119.36,0.0635376]
[1744229627428,37.74184717,119.38,119.36,0.0635376]
[1744229627629,54.19297489,119.38,119.31,37.76]
[1744229627826,6.3301,119.37,119.31,37.76]
[1744229628033,8.3815,119.36,119.31,37.76]
[1744229628641,14.7109,119.37,119.31,37.76]
[1744229628836,0.05490524,119.35,119.32,0.05414764]
[1744229630438,0.05490524,119.35,119.32,16.50527536]
[1744229632443,37.68,119.42,119.34,16.45112772]
[1744229632628,37.68,119.42,119.36,16.45112772]
[1744229633142,8.3777,119.41,119.35,37.68]
[1744229633343,71.79231286,119.44,119.36,16.45112772]
[1744229633540,0.05997086,119.39,119.37,0.06202987]
[1744229641247,8.43927086,119.39,119.37,0.06202987]
[1744229642945,8.3797,119.38,119.37,0.06202987]
[1744229643340,0.05997086,119.39,119.32,54.13112772]
[1744229643541,8.3806,119.37,119.32,54.13112772]
[1744229644450,8.43750772,119.36,119.33,0.05571508]
[1744229645351,8.3819,119.35,119.33,0.05571508]
[1744229646253,8.3826,119.34,119.33,0.05571508]
[1744229646453,16.50733544,119.36,119.27,16.45112772]
[1744229646750,8.3843,119.32,119.27,16.45112772]
[1744229647342,8.385,119.31,119.27,16.45112772]
[1744229647538,8.385,119.31,119.28,0.06439672]
[1744229647842,8.44673954,119.31,119.28,0.06439672]
[1744229653059,0.06173954,119.31,119.28,0.06439672]
[1744229653658,8.44673954,119.31,119.28,0.06439672]
[1744229653845,0.06173954,119.31,119.28,0.06439672]
[1744229654250,8.386,119.3,119.28,0.06439672]
[1744229654556,0.06173954,119.31,119.28,0.06439672]
[1744229655166,16.45112772,119.3,119.23,16.45112772]
[1744229655366,8.3879,119.27,119.21,657.25112772]
[1744229656059,8.3885,119.26,119.2,16.45112772]
[1744229656267,22.89352772,119.28,119.19,16.45112772]
[1744229656469,0.05862696,119.24,119.22,0.05854169]
[1744229656658,8.44862696,119.24,119.22,0.05854169]
[1744229657463,0.05862696,119.24,119.22,0.05854169]
[1744229658360,8.44822696,119.24,119.22,0.05854169]
[1744229658566,16.50975468,119.24,119.16,16.45112772]
[1744229658954,16.45112772,119.24,119.16,16.45112772]
[1744229659367,8.3906,119.23,119.16,16.45112772]
[1744229659564,8.3906,119.23,119.16,54.05112772]
[1744229659765,0.05418705,119.21,119.18,0.05568144]
[1744229661470,8.44628705,119.21,119.18,0.05568144]
[1744229661765,0.05418705,119.21,119.18,0.05568144]
[1744229663366,0.05418705,119.21,119.19,8.3927]
[1744229665669,0.05418705,119.21,119.18,0.05568144]
[1744229666268,0.05418705,119.21,119.2,8.3924]
[1744229666572,0.05418705,119.21,119.18,0.05568144]
[1744229666771,0.05418705,119.21,119.19,8.3927]
[1744229667470,0.05418705,119.21,119.18,0.05568144]
[1744229668072,3.1025,119.27,119.19,16.45112772]
[1744229668267,3.1025,119.27,119.19,22.50182772]
[1744229668670,8.3882,119.26,119.23,8.3897]
[1744229669172,8.3882,119.26,119.19,22.50182772]
[1744229669173,11.4903,119.27,119.24,8.3892]
[1744229669371,0.05584453,119.26,119.24,8.3892]
[1744229669864,16.50697225,119.26,119.23,0.05747933]
[1744229670066,37.62,119.25,119.23,0.05747933]
[1744229671674,46.0094,119.25,119.23,0.05747933]
[1744229676372,24.84072772,119.24,119.23,0.05747933]
[1744229678177,8.3922,119.21,119.16,3.001]
[1744229678378,24.84332772,119.21,119.15,6.028]
[1744229679280,0.06323281,119.19,119.17,0.05774661]
[1744229679971,16.51436053,119.19,119.17,0.05774661]
[1744229681080,8.3938,119.18,119.17,0.05774661]
[1744229681283,16.51436053,119.19,119.17,0.05774661]
[1744229681477,0.06323281,119.19,119.17,0.05774661]
[1744229683583,8.45653281,119.19,119.17,0.05774661]
[1744229684082,0.06323281,119.19,119.17,0.05774661]
[1744229684783,8.45633281,119.19,119.17,0.05774661]
[1744229685385,0.06323281,119.19,119.17,0.05774661]
[1744229686487,53.99112772,119.18,119.08,57.07842772]
[1744229686686,59.89552772,119.18,119.08,63.16982772]
[1744229686887,8.3956,119.16,119.08,63.16982772]
[1744229687286,8.3948,119.17,119.08,63.16982772]
[1744229687587,0.05363634,119.14,119.11,0.057675]
[1744229689293,8.45023634,119.14,119.11,0.057675]
[1744229689789,0.05363634,119.14,119.11,0.057675]
[1744229690778,8.3973,119.13,119.11,0.057675]
[1744229690983,16.45112772,119.12,119.03,16.45112772]
[1744229691185,37.54,119.13,119.07,16.45112772]
[1744229691691,37.54,119.13,119.06,37.54]
[1744229691988,37.54,119.13,119.07,9.064]
[1744229692193,0.05498907,119.11,119.08,0.05781108]
[1744229695396,0.05498907,119.11,119.08,37.61781108]
[1744229695697,0.05498907,119.11,119.09,16.45112772]
[1744229695997,37.56,119.16,119.09,16.45112772]
[1744229696189,54.01112772,119.16,119.09,6.0057]
[1744229696388,8.3963,119.15,119.09,6.0057]
[1744229696996,62.40672772,119.16,119.09,6.0057]
[1744229697294,0.05833433,119.13,119.11,0.05662027]
[1744229699385,37.56,119.19,119.11,0.05662027]
[1744229699591,54.01112772,119.19,119.1,19.40042772]
[1744229700700,0.05982936,119.16,119.13,0.05421058]
[1744229702801,0.05982936,119.16,119.13,37.61421058]
[1744229704697,0.05982936,119.16,119.13,40.56441058]
[1744229704898,54.01112772,119.22,119.14,16.45112772]
[1744229705097,54.01112772,119.22,119.15,3.1628]
[1744229705290,16.45112772,119.22,119.15,3.1628]
[1744229705495,626.89622772,119.24,119.16,16.45112772]
[1744229705697,626.89622772,119.24,119.16,19.51032772]
[1744229705994,610.4451,119.24,119.17,37.54]
[1744229706306,0.05601324,119.21,119.19,0.05986735]
[1744229706897,0.05601324,119.21,119.19,3.01006735]
[1744229708005,16.45112772,119.27,119.2,78.45112772]
[1744229708202,16.45112772,119.27,119.2,81.61022772]
[1744229708403,8.3886,119.26,119.2,81.61022772]
[1744229708702,16.45112772,119.27,119.2,65.1591]
[1744229708906,8.3899,119.24,119.2,62.0]
[1744229709101,0.05864365,119.25,119.22,0.05725091]
[1744229719208,8.44764365,119.25,119.22,0.05725091]
[1744229719720,0.05864365,119.25,119.22,0.05725091]
[1744229724120,4.365e-05,119.25,119.23,53.89112772]
[1744229724316,9.2057,119.32,119.23,53.89112772]
[1744229724517,9.2057,119.32,119.25,16.45112772]
[1744229724921,17.5901,119.32,119.25,16.45112772]
[1744229725217,17.5901,119.32,119.26,62.0]
[1744229725618,0.05691285,119.3,119.28,0.05576433]
[1744229726817,0.05691285,119.3,119.29,8.3861]
[1744229727211,53.89112772,119.36,119.28,0.05576433]
[1744229727411,8.3833,119.33,119.29,8.3857]
[1744229728218,8.3842,119.32,119.28,8.3866]
[1744229728411,8.44738841,119.32,119.3,0.05973416]
[1744229729520,8.3847,119.31,119.3,0.05973416]
[1744229731920,8.3863,119.29,119.24,43.8479]
[1744229732823,0.05573377,119.28,119.25,0.05934396]
[1744229733414,0.05573377,119.28,119.25,8.44774396]
[1744229733620,8.3876,119.27,119.25,0.05934396]
[1744229734118,8.3882,119.26,119.25,0.05934396]
[1744229735426,0.05573377,119.28,119.25,0.05934396]
[1744229736013,0.05573377,119.28,119.25,8.44794396]
[1744229736320,0.05573377,119.28,119.25,0.05934396]
[1744229736522,8.3875,119.27,119.25,0.05934396]
[1744229737418,40.52543377,119.28,119.25,0.05934396]
[1744229738627,8.3879,119.27,119.25,0.05934396]
[1744229739828,40.52543377,119.28,119.25,0.05934396]
[1744229740225,16.45112772,119.27,119.25,0.05934396]
[1744229740530,8.3882,119.26,119.25,0.05934396]
[1744229740928,0.05573377,119.28,119.25,0.05934396]
[1744229741328,0.05573377,119.28,119.25,8.44794396]
[1744229741530,8.44273377,119.28,119.25,8.44794396]
[1744229742133,8.44273377,119.28,119.25,0.05934396]
[1744229742724,0.05573377,119.28,119.25,0.05934396]
[1744229742927,16.50686149,119.28,119.25,0.05934396]
[1744229744639,8.388,119.27,119.25,0.05934396]
[1744229745941,8.3882,119.26,119.25,0.05934396]
[1744229746337,16.50686149,119.28,119.25,0.05934396]
[1744229746642,8.3878,119.27,119.25,0.05934396]
[1744229747337,16.50686149,119.28,119.25,0.05934396]
[1744229747943,24.89396149,119.28,119.25,0.05934396]
[1744229748143,16.50686149,119.28,119.25,0.05934396]
[1744229748333,16.45112772,119.26,119.25,0.05934396]
[1744229748538,24.83932772,119.26,119.25,0.05934396]
[1744229754973,16.45112772,119.26,119.25,0.05934396]
[1744229755480,24.83932772,119.26,119.25,0.05934396]
[1744229758270,40.4087,119.27,119.25,0.05934396]
[1744229759083,8.3882,119.26,119.25,0.05934396]
[1744229759463,40.4087,119.27,119.25,0.05934396]
[1744229759674,48.7967,119.27,119.25,0.05934396]
[1744229759873,0.05573377,119.28,119.25,0.05934396]
[1744229760367,0.05573377,119.28,119.27,8.3875]
[1744229761864,0.05573377,119.28,119.25,37.39934396]
[1744229762355,0.05573377,119.28,119.26,8.388]
[1744229762559,0.05573377,119.28,119.26,16.45112772]
[1744229762988,0.05573377,119.28,119.27,8.3875]
[1744229763178,0.05573377,119.28,119.25,0.05934396]
[1744229763484,16.50686149,119.28,119.25,0.05934396]
[1744229763978,8.3882,119.26,119.25,0.05934396]
[1744229767661,8.3878,119.27,119.25,0.05934396]
[1744229768354,8.3882,119.26,119.25,0.05934396]
[1744229770962,0.05573377,119.28,119.25,0.05934396]
[1744229772058,8.3878,119.27,119.25,0.05934396]
[1744229772263,0.05573377,119.28,119.25,0.05934396]
[1744229772662,8.3875,119.27,119.25,0.05934396]
[1744229772859,0.05573377,119.28,119.25,0.05934396]
[1744229773861,8.3882,119.26,119.25,0.05934396]
[1744229774064,0.05573377,119.28,119.25,0.05934396]
[1744229774671,53.71112772,119.27,119.18,9.1827]
[1744229774965,16.45112772,119.25,119.18,46.4427]
[1744229775165,8.3899,119.24,119.18,46.4427]
[1744229775665,8.3899,119.24,119.18,108.4427]
[1744229775867,0.05884521,119.22,119.2,0.0639296]
[1744229776462,8.3917,119.21,119.2,0.0639296]
[1744229776974,8.3917,119.21,119.15,37.26]
[1744229776975,8.3939,119.18,119.15,37.26]
[1744229778173,8.45746826,119.18,119.15,37.31977871]
[1744229779975,8.45746826,119.18,119.15,0.05977871]
[1744229780170,8.3946,119.17,119.15,0.05977871]
[1744229780368,0.06356826,119.18,119.15,0.05977871]
[1744229780770,8.45766826,119.18,119.15,0.05977871]
[1744229782686,0.06356826,119.18,119.15,0.05977871]
[1744229783267,8.3952,119.16,119.15,0.05977871]
[1744229784764,8.3949,119.17,119.15,0.05977871]
[1744229785077,8.3949,119.17,119.15,8.45567871]
[1744229786268,0.06356826,119.18,119.15,0.05977871]
[1744229787080,0.06356826,119.18,119.17,8.3945]
[1744229787276,89.90568514,119.26,119.18,16.45112772]
[1744229787577,83.55888514,119.26,119.24,8.3896]
[1744229787772,62.73001286,119.26,119.24,8.3896]
[1744229787971,46.27888514,119.26,119.24,8.3896]
[1744229788171,54.66738514,119.26,119.23,8.39]
[1744229788374,54.7290614,119.26,119.24,0.05780839]
[1744229788573,8.45017626,119.26,119.24,0.05780839]
[1744229788978,8.45017626,119.26,119.24,8.44730839]
[1744229789277,0.06167626,119.26,119.24,8.44730839]
[1744229789476,0.06167626,119.26,119.24,0.05780839]
[1744229789678,0.06167626,119.26,119.24,8.44700839]
[1744229789878,8.3889,119.25,119.24,0.05780839]
[1744229790477,24.90130398,119.26,119.24,0.05780839]
[1744229790779,8.45017626,119.26,119.24,0.05780839]
[1744229791077,0.06167626,119.26,119.24,0.05780839]
[1744229792177,8.3889,119.25,119.24,0.05780839]
[1744229794369,8.45007626,119.26,119.24,0.05780839]
[1744229794783,8.3889,119.25,119.24,0.05780839]
[1744229797690,8.3909,119.23,119.19,6.3094]
[1744229797884,16.45112772,119.24,119.18,37.26]
[1744229798085,16.45112772,119.24,119.21,8.3917]
[1744229798782,8.3906,119.23,119.21,8.45203645]
[1744229799181,16.51189558,119.24,119.21,0.06033645]
[1744229799380,8.391,119.22,119.21,0.06033645]
[1744229800989,8.3932,119.19,119.15,37.26]
[1744229801786,8.3928,119.2,119.17,8.3942]
[1744229802185,8.44844741,119.2,119.17,8.450916]
[1744229802388,8.3932,119.19,119.17,8.450916]
[1744229802593,0.05564741,119.2,119.18,8.3937]
[1744229803086,8.44834741,119.2,119.17,8.450816]
[1744229803274,8.44834741,119.2,119.17,0.056716]
[1744229804275,8.3931,119.19,119.17,0.056716]
[1744229804475,0.05564741,119.2,119.17,0.056716]
[1744229804887,8.44854741,119.2,119.17,0.056716]
[1744229806084,8.3932,119.19,119.17,0.056716]
[1744229806291,0.05564741,119.2,119.17,0.056716]
[1744229806989,8.44844741,119.2,119.17,0.056716]
[1744229808191,0.05564741,119.2,119.17,0.056716]
[1744229810997,4.741e-05,119.2,119.18,16.45112772]
[1744229811290,53.63112772,119.28,119.19,56.69502772]
[1744229811895,8.3878,119.27,119.24,8.3894]
[1744229812284,8.45128083,119.27,119.24,8.45029758]
[1744229812490,0.06348083,119.27,119.26,8.3882]
[1744229812809,11.56972128,119.29,119.24,16.5120253]
[1744229812999,73.41738236,119.31,119.24,19.5759253]
[1744229813633,73.41738236,119.31,119.29,8.3857]
[1744229813817,73.41738236,119.31,119.25,62.0]
[1744229814110,73.47591048,119.31,119.29,8.3859]
[1744229816213,46.33741326,119.31,119.27,8.44773807]
[1744229816410,0.05852812,119.31,119.27,0.06053807]
[1744229816710,8.3861,119.29,119.27,0.06053807]
[1744229817105,59.48282772,119.3,119.27,0.06053807]
[1744229817299,67.86882772,119.3,119.27,0.06053807]
[1744229817492,3.16682812,119.31,119.27,0.06053807]
[1744229817701,0.05852812,119.31,119.27,0.06053807]
[1744229817900,0.05852812,119.31,119.3,8.3854]
[1744229821394,2.812e-05,119.31,119.3,8.3854]
[1744229824501,2.812e-05,119.31,119.27,115.69166579]
[1744229824695,2.812e-05,119.31,119.27,53.69166579]
[1744229824901,2.812e-05,119.31,119.28,8.3866]
[1744229825300,8.38472812,119.31,119.28,8.3866]
[1744229825496,2.812e-05,119.31,119.28,8.3866]
[1744229826105,2.812e-05,119.31,119.27,0.06053807]
[1744229826311,53.61115584,119.31,119.27,0.06053807]
[1744229826502,16.45112772,119.29,119.27,0.06053807]
[1744229826733,8.3868,119.28,119.27,0.06053807]
[1744229827006,16.45112772,119.29,119.24,8.3892]
[1744229827206,8.3885,119.26,119.24,8.3892]
[1744229828007,0.05908895,119.26,119.24,8.44513615]
[1744229828503,8.44758895,119.26,119.24,0.05593615]
[1744229829101,8.3889,119.25,119.24,0.05593615]
[1744229829297,24.84002772,119.25,119.24,0.05593615]
[1744229829905,8.3911,119.22,119.2,45.5522]
[1744229830102,16.45112772,119.23,119.17,41.52374788]
[1744229830402,8.3927,119.2,119.18,8.3934]
[1744229831107,8.3927,119.2,119.18,8.45336406]
[1744229831108,0.06076459,119.2,119.18,8.45336406]
[1744229833011,8.3931,119.19,119.18,0.05996406]
[1744229833212,0.06076459,119.2,119.18,0.05996406]
[1744229833510,8.45346459,119.2,119.18,0.05996406]
[1744229834311,0.06076459,119.2,119.18,0.05996406]
[1744229834716,0.06076459,119.2,119.18,8.45376406]
[1744229835918,0.06076459,119.2,119.19,8.3931]
[1744229838915,69.49542572,119.26,119.22,8.3906]
[1744229838916,43.1321,119.26,119.22,8.3906]
[1744229839405,8.3893,119.25,119.22,8.3906]
[1744229839608,43.1321,119.26,119.23,8.3901]
[1744229839919,43.19181914,119.26,119.23,8.44370927]
[1744229840117,8.3889,119.25,119.23,8.44370927]
[1744229840420,43.19181914,119.26,119.23,8.44370927]
[1744229840618,43.19181914,119.26,119.24,8.3894]
[1744229840817,51.58021914,119.26,119.24,8.3894]
[1744229841020,51.58021914,119.26,119.23,8.44350927]
[1744229841509,43.19181914,119.26,119.23,0.05360927]
[1744229842718,0.05971914,119.26,119.23,0.05360927]
[1744229842930,0.05971914,119.26,119.24,8.3892]
[1744229844028,0.05971914,119.26,119.23,8.44370927]
[1744229844329,0.05971914,119.26,119.23,0.05360927]
[1744229844625,8.3892,119.25,119.23,8.44390927]
[1744229845221,8.3889,119.25,119.23,0.05360927]
[1744229845426,0.05971914,119.26,119.23,0.05360927]
[1744229845921,26.42304486,119.26,119.23,0.05360927]
[1744229846224,37.1,119.25,119.23,0.05360927]
[1744229846426,40.0678,119.25,119.23,0.05360927]
[1744229846615,8.3896,119.24,119.23,0.05360927]
[1744229847825,8.391,119.23,119.2,8.3921]
[1744229848226,43.2304,119.25,119.2,8.3921]
[1744229848427,8.3916,119.22,119.19,8.3927]
[1744229849029,8.44729295,119.22,119.19,8.45140889]
[1744229849633,8.3917,119.21,119.19,8.45140889]
[1744229850224,8.44689295,119.22,119.2,8.3924]
[1744229850929,0.05569295,119.22,119.2,8.3924]
[1744229851628,8.44689295,119.22,119.19,8.45140889]
[1744229851924,0.05569295,119.22,119.19,0.05870889]
[1744229852132,8.3924,119.2,119.19,0.05870889]
[1744229853321,8.3942,119.18,119.16,8.3948]
[1744229854426,8.45265122,119.18,119.16,8.45468256]
[1744229854629,0.05845122,119.18,119.16,8.45468256]
[1744229854833,0.05845122,119.18,119.17,8.3945]
[1744229857534,0.05845122,119.18,119.16,8.45468256]
[1744229858631,0.05845122,119.18,119.17,8.3945]
[1744229859031,8.45225122,119.18,119.16,8.45468256]
[1744229859434,0.05845122,119.18,119.16,0.05988256]
[1744229859628,8.3945,119.17,119.16,0.05988256]
[1744229861330,0.05845122,119.18,119.16,0.05988256]
[1744229861729,0.05845122,119.18,119.17,8.3945]
[1744229862035,0.05845122,119.18,119.16,0.05988256]
[1744229862329,8.3945,119.17,119.16,0.05988256]
[1744229867852,0.05845122,119.18,119.16,0.05988256]
[1744229868335,0.05845122,119.18,119.17,8.3945]
[1744229874745,0.05845122,119.18,119.17,70.3945]
[1744229874946,0.05845122,119.18,119.17,8.3945]
[1744229875446,0.05845122,119.18,119.16,0.05988256]
[1744229876351,0.05845122,119.18,119.17,8.3945]
[1744229884760,8.45235122,119.18,119.16,8.45468256]
[1744229885861,0.05845122,119.18,119.17,8.3945]
[1744229886359,8.45255122,119.18,119.16,8.45478256]
[1744229887862,0.05845122,119.18,119.16,8.45478256]
[1744229888963,0.05845122,119.18,119.17,8.3945]
[1744229890555,0.05845122,119.18,119.17,18.94054293]
[1744229892062,240.05845122,119.18,119.17,18.94054293]
[1744229893864,240.05845122,119.18,119.17,8.3945]
[1744229895061,240.05845122,119.18,119.16,8.45478256]
[1744229897865,248.45225122,119.18,119.16,8.45478256]
[1744229898160,240.05845122,119.18,119.17,8.3945]
[1744229898866,248.45255122,119.18,119.16,8.45488256]
[1744229899570,240.05845122,119.18,119.17,8.3945]
[1744229899759,103.03451661,119.18,119.17,18.94054293]
[1744229899965,59.03576421,119.26,119.17,47.46604293]
[1744229900269,3.1781,119.25,119.22,10.54604293]
[1744229900466,11.56972128,119.26,119.24,10.54604293]
[1744229900761,11.56972128,119.26,119.17,604.2]
[1744229900963,10.54604293,119.24,119.19,36.92]
[1744229901166,8.3906,119.23,119.19,47.46604293]
[1744229901368,8.3906,119.23,119.2,0.06084058]
[1744229901668,0.0605499,119.22,119.2,10.60688351]
[1744229902669,0.0605499,119.22,119.21,10.54604293]
[1744229903269,0.0605499,119.22,119.21,18.93774293]